bitfinex/quotes_ETHUSD_20250625
["timestamp","ask_amount","ask_price","bid_price","bid_amount"]
[1750884025523,0.2056,2428.6,2428.2,4.32376638]
[1750884026224,4.32321596,2428.6,2428.2,0.2056]
[1750884026623,0.2056,2428.6,2428.3,4.11808985]
[1750884027222,0.2056,2428.6,2428.3,4.11800371]
[1750884027626,0.2056,2428.6,2428.4,4.11793612]
[1750884028035,0.2056,2428.6,2428.5,4.11776816]
[1750884028337,0.2056,2428.6,2428.4,4.11788417]
[1750884028643,0.2056,2428.6,2428.5,4.11776816]
[1750884029717,9.876,2429.2,2428.5,4.11776816]
[1750884029718,8.45,2429.1,2428.9,4.11700995]
[1750884029946,8.6556,2429.1,2428.8,4.11718113]
[1750884030303,1.738,2429.1,2429.0,4.11692054]
[1750884030734,1.738,2429.5,2429.4,4.11624269]
[1750884031031,0.2056,2429.6,2429.4,4.11624269]
[1750884031816,0.2056,2429.6,2429.5,4.11607326]
[1750884032012,19.879,2430.1,2429.0,4.1169056]
[1750884032013,1.738,2429.9,2429.7,4.11573445]
[1750884032237,1.9436,2429.9,2429.7,4.11573445]
[1750884032733,0.2056,2429.9,2429.7,4.11573445]
[1750884033068,1.738,2430.0,2429.7,8.53105291]
[1750884033205,1.738,2430.0,2429.8,4.11546084]
[1750884034010,1.738,2430.0,2429.7,12.85231121]
[1750884034319,1.738,2430.0,2429.7,0.2056]
[1750884034519,4.721287,2429.9,2429.2,14.91906168]
[1750884034725,4.32137549,2429.7,2429.2,1.0081]
[1750884034925,4.11601204,2429.6,2429.2,1.0081]
[1750884035131,4.32145089,2429.7,2429.2,5.12458534]
[1750884035336,0.2056,2429.7,2429.2,5.12458534]
[1750884035533,4.32138889,2429.7,2429.2,5.12467979]
[1750884035732,4.11616477,2429.5,2429.2,0.2056]
[1750884036244,4.1159825,2429.6,2429.1,4.11664707]
[1750884036453,0.2056,2429.3,2429.1,4.11662477]
[1750884036617,0.2056,2429.3,2429.0,14.11685699]
[1750884037129,0.2056,2429.3,2428.8,4.11712662]
[1750884037130,0.2056,2429.2,2428.8,4.11712662]
[1750884037440,0.2056,2429.2,2428.8,10.0]
[1750884037641,4.32219436,2429.2,2428.7,0.2056]
[1750884037954,4.11693399,2429.0,2428.7,0.2056]
[1750884038128,4.11692054,2429.0,2428.7,0.2056]
[1750884038848,4.1171915,2428.9,2428.5,0.7737]
[1750884039041,0.2056,2428.9,2428.5,0.9793]
[1750884039246,0.2056,2428.9,2428.5,5.09697193]
[1750884039422,0.2056,2428.9,2428.5,6.01846158]
[1750884040257,0.2056,2428.9,2428.5,1.90078965]
[1750884040442,4.32270258,2428.9,2428.5,1.90078965]
[1750884040821,4.11727529,2428.8,2428.5,1.90078965]
[1750884041752,4.11727529,2428.8,2428.5,1.12708965]
[1750884042346,0.2056,2428.9,2428.5,1.12708965]
[1750884042547,0.2056,2428.9,2428.5,5.24472949]
[1750884043139,0.2056,2428.9,2428.5,1.12708965]
[1750884043324,0.2056,2428.9,2428.5,5.24485631]
[1750884043523,0.2056,2428.9,2428.5,1.12708965]
[1750884044028,0.2056,2428.9,2428.5,0.2056]
[1750884044220,1.738,2429.0,2428.3,0.7737]
[1750884044466,4.11776017,2428.6,2428.2,0.2056]
[1750884044636,0.2056,2428.7,2428.2,0.2056]
[1750884044839,0.2056,2428.5,2428.2,4.118271]
[1750884045340,0.2056,2428.5,2428.1,0.99011899]
[1750884045541,0.2056,2428.5,2428.3,4.11801973]
[1750884048552,0.2056,2428.5,2428.2,4.11825751]
[1750884048929,0.2056,2428.5,2428.0,0.2056]
[1750884048930,4.1180396,2428.4,2428.0,0.2056]
[1750884049253,4.1180396,2428.4,2427.3,0.56152041]
[1750884049254,0.2056,2428.1,2427.6,0.2056]
[1750884049558,1.738,2428.0,2427.5,4.11946259]
[1750884049727,0.2056,2427.9,2427.6,4.11928905]
[1750884050156,0.2056,2427.9,2427.5,0.2056]
[1750884050359,0.2056,2427.9,2427.6,4.11926997]
[1750884050666,0.2056,2427.9,2427.7,4.11912509]
[1750884051255,0.2056,2427.9,2427.6,5.04020047]
[1750884051462,4.32440064,2427.9,2427.6,0.92099028]
[1750884051652,0.2056,2427.9,2427.7,4.11912384]
[1750884051961,0.2056,2427.9,2427.8,4.11895543]
[1750884052178,0.2056,2427.9,2427.7,4.11912384]
[1750884052179,0.2056,2427.9,2427.7,4.11906051]
[1750884052787,0.2056,2427.9,2427.8,4.11895543]
[1750884053352,0.2056,2427.9,2427.7,4.11903436]
[1750884053784,0.2056,2427.9,2427.6,5.0401845]
[1750884054183,0.2056,2427.9,2427.7,4.11910853]
[1750884054566,0.2056,2427.9,2427.7,4.11903448]
[1750884055160,0.2056,2427.9,2427.8,4.11895543]
[1750884055375,0.2056,2427.9,2427.6,5.24580991]
[1750884055576,0.2056,2427.9,2427.7,4.11905167]
[1750884056782,0.2056,2427.9,2427.6,5.24581761]
[1750884056959,0.2056,2427.9,2427.7,4.11910672]
[1750884058683,0.2056,2427.9,2427.8,4.11895543]
[1750884058987,0.2056,2427.9,2427.7,5.05553853]
[1750884059850,0.2056,2427.9,2427.8,4.11895543]
[1750884061883,1.744,2428.3,2427.9,4.11870015]
[1750884062062,0.2056,2428.2,2428.0,4.11851166]
[1750884062384,0.2056,2428.2,2427.8,4.89923542]
[1750884062582,4.32395219,2428.2,2427.8,2.74295615]
[1750884062746,0.2056,2428.2,2427.7,0.2056]
[1750884062951,0.2056,2428.0,2427.6,4.87611161]
[1750884063148,0.2056,2428.0,2427.6,0.2056]
[1750884063149,4.32424584,2428.0,2427.6,0.2056]
[1750884063995,0.2056,2428.0,2427.6,4.3248414]
[1750884064854,0.2056,2428.0,2427.7,4.11911369]
[1750884065604,0.2056,2428.0,2427.8,4.11893109]
[1750884066508,0.2056,2428.0,2427.8,4.11883581]
[1750884066706,0.2056,2428.0,2427.7,4.11902922]
[1750884067202,0.2056,2428.0,2427.6,4.32481972]
[1750884067571,0.2056,2428.0,2427.7,4.11910023]
[1750884069404,0.2056,2428.0,2427.8,4.11893462]
[1750884069609,0.2056,2428.0,2427.7,4.11904373]
[1750884069817,0.2056,2428.0,2427.8,4.11893543]
[1750884071607,0.2056,2428.0,2427.9,4.11878578]
[1750884072328,0.2056,2428.0,2427.8,4.11887955]
[1750884073289,0.2056,2428.0,2427.6,12.86900815]
[1750884073506,0.2056,2428.0,2427.7,4.11903043]
[1750884075204,0.2056,2428.0,2427.8,4.11893749]
[1750884075701,0.2056,2428.0,2427.6,15.64354875]
[1750884075901,0.2056,2428.0,2427.6,7.09937482]
[1750884077293,0.2056,2428.0,2427.7,4.11911877]
[1750884077608,0.2056,2428.0,2427.6,7.09937896]
[1750884077811,0.2056,2428.0,2427.7,4.11911827]
[1750884078011,0.2056,2428.0,2427.8,4.11893702]
[1750884078711,0.2056,2428.0,2427.7,4.11906546]
[1750884081877,0.2056,2428.0,2427.6,7.09936063]
[1750884083010,4.32422685,2428.0,2427.6,7.09936063]
[1750884083512,0.2056,2428.0,2427.6,7.09936063]
[1750884086217,0.2056,2428.0,2427.7,4.11907487]
[1750884086403,0.2056,2428.0,2427.6,7.09936063]
[1750884086404,0.2056,2428.0,2427.8,4.11892461]
[1750884086717,0.2056,2428.0,2427.8,4.11893444]
[1750884087612,0.2056,2428.0,2427.7,4.11902586]
[1750884087779,0.2056,2428.0,2427.6,4.32478664]
[1750884087984,0.2056,2428.0,2427.7,4.11910189]
[1750884093501,0.2056,2428.0,2427.6,4.32484576]
[1750884093708,0.2056,2428.0,2427.7,4.11905319]
[1750884095313,0.2056,2428.0,2427.8,4.11895466]
[1750884096232,1.744,2428.3,2427.8,4.11895466]
[1750884096233,10.0,2428.5,2427.9,4.11878578]
[1750884096577,4.11857249,2428.1,2427.6,4.91662084]
[1750884096826,4.32431002,2428.0,2427.5,4.32497041]
[1750884097126,0.2056,2428.0,2427.6,4.11926146]
[1750884097284,0.2056,2428.0,2427.7,4.11911303]
[1750884098316,0.2056,2428.0,2427.8,4.11892108]
[1750884098921,8.452,2428.1,2427.8,4.91622141]
[1750884099803,0.2056,2428.2,2428.0,4.11853639]
[1750884100020,8.452,2428.2,2428.0,4.11853639]
[1750884100695,8.452,2428.2,2427.9,4.32429979]
[1750884100995,8.452,2428.2,2427.9,0.2056]
[1750884101190,8.452,2428.2,2427.9,4.32434144]
[1750884101694,8.452,2428.2,2427.9,0.2056]
[1750884102004,8.452,2428.2,2427.9,4.32437275]
[1750884102421,0.2056,2428.3,2427.9,4.32437275]
[1750884102612,8.6576,2428.3,2427.9,4.32437275]
[1750884103697,12.77571701,2428.3,2427.9,4.32437275]
[1750884103928,8.6576,2428.3,2427.9,4.32437275]
[1750884104902,4.11830702,2428.2,2427.9,0.2056]
[1750884107138,5.62853107,2428.2,2427.9,0.2056]
[1750884107314,6.81991599,2428.2,2427.7,4.32463637]
[1750884107517,5.30977096,2428.2,2427.7,4.32463637]
[1750884109734,1.739,2428.1,2427.7,4.32463637]
[1750884110443,1.739,2428.1,2427.8,4.11894725]
[1750884111108,1.739,2428.1,2427.7,0.2056]
[1750884111443,1.739,2428.1,2427.7,4.3246313]
[1750884112443,5.85745784,2428.1,2427.7,0.2056]
[1750884112742,0.2056,2428.0,2427.6,4.3247572]
[1750884112942,0.2056,2428.0,2427.7,4.11912414]
[1750884113848,0.2056,2428.0,2427.6,4.32480271]
[1750884114235,4.32425722,2428.0,2427.6,4.32480271]
[1750884114432,0.2056,2428.0,2427.6,4.32480271]
[1750884115618,0.2056,2428.0,2427.7,4.11912198]
[1750884120355,0.2056,2428.0,2427.6,4.32479379]
[1750884120953,0.2056,2428.0,2427.6,0.2056]
[1750884121333,0.2056,2428.0,2427.6,4.3248194]
[1750884122070,0.2056,2428.0,2427.7,4.11909088]
[1750884122467,0.2056,2428.0,2427.6,4.3248092]
[1750884122938,4.32422797,2428.0,2427.6,4.3248092]
[1750884123364,4.11912509,2427.7,2427.2,0.7743]
[1750884123639,0.2056,2427.6,2427.3,4.1197323]
[1750884127184,0.2056,2427.6,2427.4,4.11960685]
[1750884128254,0.2056,2427.6,2427.3,4.11971445]
[1750884129773,0.2056,2427.6,2427.2,4.89419123]
[1750884130075,4.11947118,2427.5,2427.1,0.2056]
[1750884130272,2.84157285,2427.6,2426.8,0.8252]
[1750884130603,2.84157285,2427.6,2426.8,1.0308]
[1750884130604,4.32568853,2427.2,2426.8,1.0308]
[1750884130752,0.2056,2427.2,2426.8,5.15143119]
[1750884131759,0.2056,2427.2,2427.0,4.12024355]
[1750884132746,0.2056,2427.2,2427.1,4.12014338]
[1750884133279,7.8,2428.3,2427.2,0.7858]
[1750884133579,0.2056,2427.7,2427.2,0.7858]
[1750884133777,0.2056,2427.7,2427.4,4.11947661]
[1750884133973,0.2056,2427.7,2427.2,0.7858]
[1750884134347,0.2056,2427.7,2427.6,4.11929477]
[1750884134780,1.738,2427.8,2427.5,4.11939745]
[1750884134974,1.738,2427.8,2427.4,4.11949301]
[1750884134975,6.06257954,2427.8,2427.4,0.2056]
[1750884135187,1.9436,2427.8,2427.4,4.32522693]
[1750884135959,4.11931205,2427.6,2427.2,0.7858]
[1750884136177,4.11931205,2427.6,2427.2,0.9914]
[1750884136482,0.2056,2427.7,2427.0,4.92604891]
[1750884136699,0.2056,2427.4,2427.1,4.1200147]
[1750884136904,0.2056,2427.4,2427.2,4.1199601]
[1750884137674,0.2056,2427.4,2427.1,4.12004776]
[1750884139208,0.2056,2427.4,2427.0,5.13165234]
[1750884139411,0.2056,2427.4,2427.2,4.11996137]
[1750884139920,0.2056,2427.4,2427.3,4.11980389]
[1750884140451,0.2056,2427.4,2427.2,4.11988483]
[1750884141486,5.8570333,2427.8,2427.3,4.11980389]
[1750884141688,0.2056,2427.5,2427.1,4.32559931]
[1750884142011,4.11992283,2427.3,2427.0,0.2056]
[1750884143389,4.12000037,2427.2,2426.7,14.91783097]
[1750884143592,4.32560037,2427.2,2426.8,0.2056]
[1750884143982,4.12020033,2427.1,2426.8,0.2056]
[1750884144189,4.32565789,2427.2,2426.8,0.2056]
[1750884144889,0.2056,2427.2,2426.8,4.32619376]
[1750884146194,0.2056,2427.2,2426.9,4.12044403]
[1750884146524,0.2056,2427.2,2426.8,4.32617425]
[1750884147441,4.32566154,2427.2,2426.8,0.2056]
[1750884148610,0.2056,2427.2,2426.8,4.32624846]
[1750884148812,0.2056,2427.2,2426.9,4.12045117]
[1750884149129,0.2056,2427.2,2427.0,4.1202482]
[1750884150239,0.2056,2427.2,2427.1,4.12014338]
[1750884150440,1.736,2427.4,2427.1,1.22271434]
[1750884150739,0.2056,2427.7,2427.5,4.11937425]
[1750884150940,1.9416,2427.7,2427.6,4.11929477]
[1750884151316,1.736,2428.1,2427.9,4.11875918]
[1750884151522,2.8952,2428.1,2427.7,4.11911574]
[1750884152149,7.0136664,2428.1,2427.6,4.32481482]
[1750884152828,4.11861792,2428.0,2427.5,4.93002964]
[1750884153028,4.32442481,2427.9,2427.5,0.2056]
[1750884153659,0.2056,2427.9,2427.5,4.32505302]
[1750884153863,1.11324667,2427.9,2427.3,10.8193]
[1750884154075,4.32488224,2427.7,2427.3,1.0249]
[1750884154239,0.2056,2427.6,2427.2,4.11997363]
[1750884154428,6.06089968,2427.6,2427.1,5.14496182]
[1750884154659,1.9416,2427.6,2427.2,4.11997363]
[1750884154846,1.9416,2427.6,2427.2,4.11985793]
[1750884155455,1.9416,2427.6,2427.1,5.14493068]
[1750884155456,1.9416,2427.6,2427.4,4.11957643]
[1750884155762,1.9416,2427.6,2427.3,4.1197255]
[1750884155977,0.2056,2427.6,2427.5,4.11946446]
[1750884156257,1.736,2427.8,2427.7,4.11912509]
[1750884157635,1.736,2427.8,2427.6,4.11919597]
[1750884157936,1.736,2427.8,2427.7,4.11912509]
[1750884160168,1.736,2427.8,2427.6,4.32485824]
[1750884162032,1.736,2427.8,2427.6,0.2056]
[1750884162376,1.736,2427.8,2427.6,4.32482172]
[1750884162528,1.736,2427.8,2427.6,4.83769389]
[1750884164846,1.736,2427.8,2427.6,0.71847217]
[1750884166782,1.736,2427.8,2427.6,4.83774399]
[1750884168545,1.736,2427.8,2427.6,0.71847217]
[1750884168750,1.736,2427.8,2427.6,4.83768375]
[1750884169070,1.736,2427.8,2427.6,0.71847217]
[1750884169566,1.736,2427.8,2427.6,4.83775965]
[1750884169769,1.736,2427.8,2427.6,0.71847217]
[1750884170877,1.736,2427.8,2427.7,4.11912509]
[1750884171044,1.736,2427.8,2427.6,4.83767347]
[1750884171656,1.736,2427.8,2427.6,0.71847217]
[1750884171877,1.736,2427.8,2427.6,0.2056]
[1750884173875,1.736,2427.8,2427.6,4.32481141]
[1750884175976,1.736,2427.8,2427.6,4.32479407]
[1750884177056,1.736,2427.8,2427.5,4.92319785]
[1750884177260,1.736,2427.8,2427.5,4.92326088]
[1750884177983,1.736,2427.8,2427.5,0.8039]
[1750884178200,5.85508387,2427.8,2427.2,0.8307]
[1750884178367,4.1191383,2427.7,2427.2,4.95058449]
[1750884178568,4.1191383,2427.7,2427.0,4.12024277]
[1750884178569,4.11940699,2427.6,2427.0,0.8307]
[1750884178810,4.11940699,2427.6,2427.2,10.0]
[1750884179009,4.11940699,2427.6,2427.0,4.95101095]
[1750884179208,4.11940699,2427.6,2427.2,10.0]
[1750884180105,4.11948448,2427.5,2427.2,10.0]
[1750884180304,4.11948448,2427.5,2427.0,14.95092084]
[1750884180597,4.11948448,2427.5,2427.0,15.72445652]
[1750884182583,4.11934599,2427.6,2427.2,10.0]
[1750884182778,4.11930119,2427.6,2427.0,5.72442756]
[1750884182987,4.11930119,2427.6,2427.2,10.0]
[1750884183189,4.11955905,2427.5,2427.0,15.7244677]
[1750884183396,4.11955905,2427.5,2427.1,11.57244677]
[1750884183601,4.11955905,2427.5,2427.1,15.69257986]
[1750884183997,4.11955905,2427.5,2427.1,11.57244677]
[1750884184507,4.11965509,2427.4,2427.1,11.57244677]
[1750884184679,4.11995866,2427.3,2426.7,4.12073964]
[1750884184880,4.12022403,2427.1,2426.6,4.94521055]
[1750884185075,4.12022403,2427.1,2426.7,10.0]
[1750884185998,4.12022403,2427.1,2426.7,14.1208027]
[1750884186478,4.12022403,2427.1,2426.6,4.94524048]
[1750884187090,4.12022403,2427.1,2426.8,0.2056]
[1750884188208,6.9096,2427.2,2426.8,4.32623213]
[1750884188377,11.02957668,2427.2,2426.8,0.2056]
[1750884189105,6.9096,2427.2,2426.8,0.2056]
[1750884189515,4.12045727,2427.0,2426.8,0.2056]
[1750884189683,4.12022736,2427.1,2426.8,0.2056]
[1750884190813,6.9096,2427.2,2426.8,0.2056]
[1750884191007,11.02963663,2427.2,2426.8,0.2056]
[1750884192313,4.12017207,2427.1,2426.8,0.2056]
[1750884192981,4.12041092,2427.0,2426.8,0.2056]
[1750884193380,1.5150183,2427.0,2426.4,0.8159]
[1750884193585,0.2056,2427.0,2426.7,4.12081641]
[1750884194313,4.11960849,2427.5,2427.0,4.12022952]
[1750884194314,8.439,2427.4,2427.0,4.12022952]
[1750884194492,8.54417393,2428.4,2426.9,0.7664]
[1750884194697,8.6446,2427.6,2427.4,4.11950956]
[1750884194881,8.6446,2427.6,2427.5,4.11946446]
[1750884195387,1.9396,2427.6,2427.5,4.11946446]
[1750884195886,1.9396,2427.6,2427.3,0.8249]
[1750884196099,1.9396,2427.6,2427.2,4.1198805]
[1750884196317,1.9396,2427.6,2427.3,4.119803]
[1750884197014,1.9396,2427.6,2427.2,4.11989175]
[1750884197321,1.9396,2427.6,2427.2,4.11988519]
[1750884197811,1.9396,2427.6,2427.3,4.11979152]
[1750884198712,1.9396,2427.6,2427.2,4.11989065]
[1750884199819,6.704,2427.5,2427.2,4.11989065]
[1750884203316,6.704,2427.5,2427.3,4.1197939]
[1750884204088,6.704,2427.5,2427.2,4.11984747]
[1750884204284,6.704,2427.5,2427.3,4.11978297]
[1750884206120,6.704,2427.5,2427.2,4.11987484]
[1750884207423,6.704,2427.5,2427.3,4.11979813]
[1750884209023,6.704,2427.5,2427.2,4.11987371]
[1750884210304,6.704,2427.5,2427.3,4.1197944]
[1750884212224,6.704,2427.5,2427.2,4.11989067]
[1750884213929,6.704,2427.5,2427.1,5.1505761]
[1750884213930,6.704,2427.5,2427.3,4.11979622]
[1750884215225,6.704,2427.5,2427.4,4.11963417]
[1750884215935,6.704,2427.5,2427.3,4.11971264]
[1750884216931,1.9396,2427.6,2427.5,4.93786446]
[1750884216932,1.734,2427.6,2427.5,4.93786446]
[1750884217237,6.9066,2427.8,2427.5,4.93786446]
[1750884219233,6.9066,2427.8,2427.5,0.8184]
[1750884220035,0.2056,2427.8,2427.5,4.93782779]
[1750884220330,0.2056,2427.8,2427.5,0.8184]
[1750884220541,4.32457434,2427.8,2427.5,0.8184]
[1750884220730,0.2056,2427.8,2427.5,0.8184]
[1750884223310,0.2056,2427.8,2427.5,4.9378481]
[1750884223721,0.2056,2427.8,2427.5,0.8184]
[1750884224140,0.2056,2427.8,2427.5,4.93784898]
[1750884224444,6.7,2427.9,2427.5,1.74469955]
[1750884224619,6.7,2427.9,2427.7,4.11912225]
[1750884225018,6.7,2427.9,2427.6,4.11922522]
[1750884225252,6.7,2427.9,2427.5,6.0696862]
[1750884225538,10.81879371,2427.9,2427.5,5.14338665]
[1750884225923,10.81879371,2427.9,2427.5,1.024]
[1750884227243,10.81879371,2427.9,2427.5,5.14344446]
[1750884228045,6.7,2427.9,2427.5,5.14344446]
[1750884230542,6.7,2427.9,2427.6,4.1192471]
[1750884232247,6.7,2427.9,2427.5,5.14338055]
[1750884232936,6.7,2427.9,2427.6,4.11919005]
[1750884233447,6.7,2427.9,2427.5,5.14338103]
[1750884234149,6.7,2427.9,2427.6,4.1192022]
[1750884235146,6.7,2427.9,2427.5,5.14339328]
[1750884235347,6.7,2427.9,2427.5,6.06969384]
[1750884236752,6.7,2427.9,2427.5,5.14339328]
[1750884237542,10.81878582,2427.9,2427.5,5.14339328]
[1750884237743,10.81878582,2427.9,2427.5,1.024]
[1750884237936,10.81878582,2427.9,2427.5,5.14345004]
[1750884238112,6.05629062,2428.0,2427.5,5.14345004]
[1750884238311,13.73957227,2428.0,2427.5,5.14345004]
[1750884238528,12.75429062,2428.0,2427.5,5.14345004]
[1750884239048,12.75429062,2428.0,2427.6,4.11929304]
[1750884239353,12.75429062,2428.0,2427.5,5.14336597]
[1750884240450,12.75429062,2428.0,2427.6,4.11928443]
[1750884240947,12.75429062,2428.0,2427.5,5.14337286]
[1750884242554,12.75429062,2428.0,2427.6,4.11928903]
[1750884243124,8.6356,2428.0,2427.7,4.11911208]
[1750884243350,9.61986967,2428.0,2427.7,4.11911208]
[1750884243551,1.732,2428.0,2427.9,4.11878578]
[1750884243751,0.2056,2428.3,2428.2,4.11827691]
[1750884244229,1.729,2428.4,2428.2,4.11820189]
[1750884244432,1.729,2428.4,2428.3,4.11810731]
[1750884244648,1.729,2428.4,2428.3,0.2056]
[1750884245334,1.729,2428.4,2427.9,4.88922058]
[1750884245335,1.729,2428.4,2428.0,4.11851966]
[1750884245533,5.84694318,2428.4,2428.1,0.69450197]
[1750884245745,5.84694318,2428.4,2428.1,0.2056]
[1750884247128,1.729,2428.4,2428.1,0.2056]
[1750884247456,1.729,2428.4,2428.1,4.32403007]
[1750884248061,1.729,2428.4,2428.2,4.11827158]
[1750884248228,1.729,2428.4,2428.1,4.32396132]
[1750884248429,1.729,2428.4,2428.2,0.84425646]
[1750884249371,1.729,2428.4,2428.2,4.96246975]
[1750884249758,1.729,2428.4,2428.2,0.84425646]
[1750884249933,1.729,2428.4,2428.1,4.32402365]
[1750884250357,1.729,2428.4,2428.2,4.11822538]
[1750884251133,1.729,2428.4,2428.1,4.32396735]
[1750884251548,1.729,2428.4,2428.1,0.2056]
[1750884252666,1.729,2428.4,2428.1,4.324026]
[1750884253370,1.729,2428.4,2428.2,4.11822904]
[1750884254039,1.729,2428.4,2428.1,1.12690757]
[1750884254239,1.729,2428.4,2428.2,4.11827367]
[1750884254463,1.729,2428.4,2428.1,1.12690757]
[1750884254464,1.729,2428.4,2428.1,4.32392201]
[1750884254669,1.729,2428.4,2428.2,4.11825927]
[1750884256272,1.729,2428.4,2428.1,4.3239624]
[1750884256667,4.32325014,2428.6,2428.1,4.3239624]
[1750884256887,6.694,2428.5,2428.1,4.3239624]
[1750884257343,6.694,2428.5,2428.2,4.11827371]
[1750884258671,6.694,2428.5,2428.2,4.11825898]
[1750884259674,6.694,2428.5,2428.1,4.32395168]
[1750884259875,6.694,2428.5,2428.2,4.11827034]
[1750884260047,6.694,2428.5,2428.2,4.118249]
[1750884260868,6.694,2428.5,2428.4,4.11793773]
[1750884261071,1.9346,2428.6,2428.5,4.11776816]
[1750884261273,1.729,2428.6,2428.5,4.11776816]
[1750884261471,0.2056,2428.9,2428.6,4.11759846]
[1750884261673,6.693,2428.8,2428.6,4.11759846]
[1750884261843,7.55576,2428.8,2428.4,0.2056]
[1750884262248,4.32312352,2428.7,2428.2,4.32376181]
[1750884263477,4.32312352,2428.7,2428.3,4.11809036]
[1750884263478,0.2056,2428.7,2428.3,4.11809036]
[1750884264385,0.2056,2428.7,2428.4,4.11791137]
[1750884265272,0.2056,2428.7,2428.3,4.11801987]
[1750884267178,0.2056,2428.7,2428.4,4.11792944]
[1750884268381,0.2056,2428.7,2428.3,4.11801606]
[1750884268576,4.32304262,2428.7,2428.3,4.11801606]
[1750884269076,0.2056,2428.7,2428.3,4.11801606]
[1750884273087,0.2056,2428.7,2428.4,4.1179281]
[1750884274478,4.32308421,2428.7,2428.3,4.11804366]
[1750884274782,4.32308421,2428.7,2428.3,4.11808697]
[1750884274979,4.11760576,2428.6,2428.2,0.2056]
[1750884275179,6.691,2428.5,2427.8,4.11881718]
[1750884275355,4.11819915,2428.3,2427.9,0.2056]
[1750884276153,0.2056,2428.4,2428.0,4.11853137]
[1750884276481,0.2056,2428.4,2428.1,4.1184084]
[1750884277478,0.2056,2428.4,2428.1,4.11842906]
[1750884277948,0.2056,2428.4,2428.0,4.11854719]
[1750884278155,4.32354639,2428.4,2427.9,4.32431601]
[1750884278357,4.32354639,2428.4,2428.0,4.11857968]
[1750884278562,4.32354639,2428.4,2427.9,4.32431149]
[1750884278780,4.1181207,2428.3,2427.9,4.32431149]
[1750884278986,4.32370225,2428.4,2427.9,4.32431149]
[1750884279188,4.1181279,2428.3,2427.9,0.2056]
[1750884279409,4.11827691,2428.2,2427.9,0.2056]
[1750884279684,4.11827691,2428.2,2427.5,9.32560194]
[1750884279685,4.11897735,2427.8,2427.5,0.2056]
[1750884280785,0.2056,2428.0,2427.6,4.11928778]
[1750884281078,4.11890348,2427.9,2427.5,0.2056]
[1750884281305,4.1189888,2427.8,2427.5,0.2056]
[1750884281451,4.32430193,2428.0,2427.5,4.32496839]
[1750884281873,4.11895543,2427.8,2427.5,0.2056]
[1750884282148,0.2056,2428.0,2427.5,0.2056]
[1750884282482,4.11933743,2427.6,2427.3,0.2056]
[1750884282659,4.11948782,2427.5,2427.3,0.2056]
[1750884282864,4.11933743,2427.6,2427.3,0.2056]
[1750884283064,6.8966,2427.7,2427.3,0.2056]
[1750884283065,11.01581891,2427.7,2427.3,0.2056]
[1750884283558,6.8966,2427.7,2427.3,0.2056]
[1750884283760,4.11949026,2427.5,2427.1,0.988]
[1750884284072,4.11949026,2427.5,2427.1,2.91086689]
[1750884284287,4.11964038,2427.4,2427.1,0.2056]
[1750884284873,4.11954178,2427.5,2427.1,0.2056]
[1750884285596,0.2056,2427.6,2427.2,4.11990715]
[1750884286994,0.2056,2427.6,2427.3,4.11979066]
[1750884287585,0.2056,2427.6,2427.2,4.11987968]
[1750884288296,0.2056,2427.6,2427.3,4.11979993]
[1750884288467,0.2056,2427.6,2427.1,4.32571712]
[1750884288665,0.2056,2427.6,2427.2,4.11994135]
[1750884288865,0.2056,2427.6,2427.3,4.1197969]
[1750884289290,0.2056,2427.6,2427.2,4.11988135]
[1750884289496,4.32497573,2427.6,2427.1,0.2056]
[1750884289695,4.11961205,2427.5,2427.1,0.2056]
[1750884289878,4.32497497,2427.6,2427.1,0.2056]
[1750884290075,4.11951486,2427.5,2427.1,0.2056]
[1750884290397,4.11964876,2427.4,2427.1,0.2056]
[1750884291599,4.11988682,2427.3,2427.1,0.2056]
[1750884291797,4.11988682,2427.3,2426.9,4.90286786]
[1750884291798,0.2056,2427.3,2426.9,4.90286786]
[1750884291997,0.2056,2427.3,2427.0,4.12019607]
[1750884292679,0.2056,2427.3,2427.1,4.12013988]
[1750884292879,0.2056,2427.3,2426.9,0.7824]
[1750884293079,0.2056,2427.3,2426.9,4.90272019]
[1750884293282,0.2056,2427.3,2427.0,4.12017772]
[1750884293489,0.2056,2427.3,2427.0,4.12031314]
[1750884293683,0.2056,2427.3,2427.1,4.1201276]
[1750884294284,0.2056,2427.3,2427.0,4.12023735]
[1750884295087,0.2056,2427.3,2427.1,4.12012504]
[1750884295971,1.727,2427.5,2427.2,4.11997363]
[1750884295972,8.418,2427.5,2427.2,4.11997363]
[1750884296182,12.74318598,2427.5,2427.0,0.2056]
[1750884296403,0.2056,2427.3,2426.9,1.29323202]
[1750884296572,0.2056,2427.3,2427.0,4.12029219]
[1750884296780,0.2056,2427.3,2426.9,5.61921588]
[1750884297989,4.32541005,2427.3,2426.9,5.61921588]
[1750884298513,4.32541005,2427.3,2426.9,1.49883202]
[1750884299013,0.2056,2427.3,2426.9,0.71643202]
[1750884299184,8.418,2427.5,2426.6,0.45307689]
[1750884299185,4.12022114,2427.1,2426.6,0.45307689]
[1750884299505,0.2056,2427.1,2426.8,4.12058144]
[1750884299708,0.2056,2427.1,2426.6,4.77952602]
[1750884299709,0.2056,2427.1,2426.7,4.12073965]
[1750884299879,0.2056,2427.1,2426.6,0.65867689]
[1750884300076,4.12033869,2427.0,2426.6,3.07157471]
[1750884300424,4.12053703,2426.9,2426.4,4.12128553]
[1750884300729,4.32654334,2426.7,2426.3,0.2056]
[1750884300927,4.12106345,2426.6,2426.3,0.2056]
[1750884301205,4.32662999,2426.6,2426.1,4.32743199]
[1750884301583,0.2056,2426.6,2426.2,4.12162923]
[1750884301807,0.2056,2426.6,2426.3,4.12148181]
[1750884302012,0.2056,2426.6,2426.2,4.12158299]
[1750884302209,4.32659434,2426.6,2426.1,4.32734902]
[1750884302380,4.32659434,2426.6,2426.1,6.25284813]
[1750884302704,4.32659434,2426.6,2426.2,4.12165858]
[1750884302893,0.2056,2426.6,2426.2,4.12165858]
[1750884303407,0.2056,2426.4,2426.1,4.12171465]
[1750884303609,0.2056,2426.4,2426.2,4.12165173]
[1750884304308,0.2056,2426.4,2426.3,4.12150187]